bitfinex/quotes_SOLUSD_20240616
["timestamp","ask_amount","ask_price","bid_price","bid_amount"]
[1718570135989,2.4802,149.18,149.13,5.29]
[1718570136291,7.7701,149.19,149.13,5.29]
[1718570136511,7.4402,149.19,149.14,5.29]
[1718570137221,37.08125547,149.2,149.14,5.29]
[1718570137417,2.48,149.19,149.14,5.29]
[1718570137623,7.4401,149.19,149.14,5.29]
[1718570137826,14.8802,149.19,149.14,5.29]
[1718570138123,2.4802,149.18,149.13,5.29]
[1718570138310,22.3221,149.18,149.12,0.51]
[1718570138622,24.8024,149.18,149.13,5.29]
[1718570139811,5.29,149.19,149.1,22.1888]
[1718570139812,2.4809,149.14,149.1,22.1888]
[1718570140126,7.4427,149.14,149.1,15.5873]
[1718570140434,30.0978,149.15,149.1,15.5873]
[1718570140598,7.7708,149.15,149.1,15.5873]
[1718570141095,12.7322,149.15,149.1,15.5873]
[1718570141295,2.4809,149.14,149.1,15.5873]
[1718570141518,17.3665,149.14,149.06,22.7059]
[1718570141704,2.4812,149.12,149.07,5.29]
[1718570141897,27.6196,149.13,149.07,5.29]
[1718570141898,30.1007,149.13,149.07,5.29]
[1718570142097,2.4812,149.12,149.07,5.29]
[1718570142594,7.7712,149.12,149.07,5.29]
[1718570142827,5.29,149.12,149.07,5.29]
[1718570143324,7.4433,149.13,149.07,5.29]
[1718570143526,12.7333,149.13,149.07,5.29]
[1718570143698,12.7333,149.13,149.08,5.29]
[1718570144813,20.1764,149.13,149.08,5.29]
[1718570145021,2.4812,149.12,149.08,5.29]
[1718570145226,7.4437,149.12,149.08,5.29]
[1718570145542,7.7712,149.12,149.06,27.9959]
[1718570148528,12.7336,149.12,149.06,27.9959]
[1718570148824,7.7712,149.12,149.06,27.9959]
[1718570149022,5.29,149.12,149.06,27.9959]
[1718570149626,37.09664292,149.13,149.07,5.29]
[1718570150202,2.4812,149.12,149.07,5.29]
[1718570151427,27.17224292,149.13,149.07,5.29]
[1718570151632,5.29,149.12,149.07,5.29]
[1718570152504,12.7336,149.12,149.06,27.9959]
[1718570152700,7.7712,149.12,149.06,27.9959]
[1718570154728,5.29,149.12,149.06,27.9959]
[1718570155934,7.7712,149.12,149.06,27.9959]
[1718570156309,5.29,149.12,149.06,27.9959]
[1718570157333,17.3689,149.12,149.06,22.7059]
[1718570157536,5.29,149.1,149.06,16.5367]
[1718570158821,12.7346,149.1,149.04,5.29]
[1718570159139,7.7715,149.1,149.04,5.29]
[1718570159531,7.7715,149.1,149.03,6.6314]
[1718570159734,7.7715,149.1,149.04,5.29]
[1718570160636,5.29,149.1,149.04,5.29]
[1718570161544,7.7715,149.1,149.04,5.29]
[1718570161739,4.9625,149.12,149.05,0.17]
[1718570161943,16.91994292,149.13,149.05,0.17]
[1718570161944,14.76654292,149.13,149.05,0.17]
[1718570162143,37.09654292,149.13,149.07,5.29]
[1718570162443,2.4814,149.11,149.05,0.17]
[1718570162654,30.1023,149.12,149.06,5.29]
[1718570163322,7.7713,149.12,149.06,5.29]
[1718570163517,2.4813,149.12,149.05,0.17]
[1718570163742,37.09704292,149.13,149.07,5.29]
[1718570163931,2.4812,149.12,149.07,5.29]
[1718570164134,34.61584292,149.13,149.07,5.29]
[1718570164342,2.4812,149.12,149.07,5.29]
[1718570164725,7.4436,149.12,149.07,5.29]
[1718570165039,2.4812,149.12,149.07,5.29]
[1718570165534,7.7712,149.12,149.07,5.29]
[1718570166142,12.7336,149.12,149.07,5.29]
[1718570166443,2.4812,149.12,149.07,5.29]
[1718570166658,7.7712,149.12,149.07,5.29]
[1718570166953,7.7712,149.12,149.05,0.17]
[1718570168434,12.7336,149.12,149.05,0.17]
[1718570169134,20.1773,149.12,149.05,0.17]
[1718570170332,12.7336,149.12,149.05,0.17]
[1718570173939,20.1772,149.12,149.05,0.17]
[1718570174865,17.696,149.12,149.05,0.17]
[1718570175155,20.1773,149.12,149.05,0.17]
[1718570177156,7.4452,149.09,149.04,0.51]
[1718570177368,12.7354,149.09,149.04,5.29]
[1718570177541,7.7718,149.09,149.04,5.29]
[1718570178959,5.29,149.09,149.04,5.29]
[1718570179459,2.4817,149.09,149.04,5.29]
[1718570180154,2.4817,149.09,149.03,6.6314]
[1718570180155,6.99565692,149.11,149.05,5.46]
[1718570180341,9.47705692,149.11,149.06,5.29]
[1718570181244,14.43985692,149.11,149.06,5.29]
[1718570182256,24.8156,149.1,149.04,0.51]
[1718570182435,34.61885692,149.11,149.05,5.29]
[1718570182637,19.73005692,149.11,149.05,5.29]
[1718570182852,27.17425692,149.11,149.05,5.29]
[1718570183055,14.43995692,149.11,149.05,5.29]
[1718570183255,19.72995692,149.11,149.05,5.29]
[1718570183761,2.4816,149.1,149.05,5.29]
[1718570184548,31.81015692,149.11,149.05,5.29]
[1718570184763,19.73005692,149.11,149.05,5.29]
[1718570185236,14.44005692,149.11,149.05,5.29]
[1718570185432,19.73005692,149.11,149.05,5.29]
[1718570185846,27.17425692,149.11,149.05,5.29]
[1718570186052,19.73005692,149.11,149.05,5.29]
[1718570186358,14.44005692,149.11,149.06,5.29]
[1718570189268,21.88425692,149.11,149.06,5.29]
[1718570190268,2.4815,149.1,149.06,5.29]
[1718570192058,2.4815,149.1,149.05,0.17]
[1718570192369,2.4815,149.1,149.06,5.29]
[1718570192971,31.80985692,149.11,149.06,5.29]
[1718570193348,2.4815,149.1,149.06,5.29]
[1718570195553,7.4446,149.1,149.06,5.29]
[1718570196341,2.4815,149.1,149.06,5.29]
[1718570201057,2.4815,149.1,149.05,5.63]
[1718570201273,31.80985692,149.11,149.05,5.63]
[1718570201772,14.44005692,149.11,149.05,5.63]
[1718570202171,9.47715692,149.11,149.06,5.29]
[1718570202661,14.43985692,149.11,149.06,5.29]
[1718570203172,21.88395692,149.11,149.06,5.29]
[1718570203472,21.88405692,149.11,149.06,5.29]
[1718570203872,29.32805692,149.11,149.06,5.29]
[1718570204089,31.80955692,149.11,149.06,5.29]
[1718570204258,14.43985692,149.11,149.06,5.29]
[1718570204679,14.43985692,149.11,149.05,5.63]
[1718570206080,9.47715692,149.11,149.05,5.63]
[1718570206253,9.47715692,149.11,149.05,0.34]
[1718570206583,9.47715692,149.11,149.05,5.63]
[1718570207153,14.43995692,149.11,149.05,5.63]
[1718570207676,21.88405692,149.11,149.05,5.63]
[1718570208181,21.88405692,149.11,149.05,0.34]
[1718570208484,14.43995692,149.11,149.05,5.63]
[1718570212098,9.47715692,149.11,149.05,5.63]
[1718570215511,14.43985692,149.11,149.05,5.63]
[1718570215680,9.47715692,149.11,149.05,5.63]
[1718570216392,6.99565692,149.11,149.06,5.29]
[1718570216692,6.99565692,149.11,149.07,5.46]
[1718570217881,9.47705692,149.11,149.07,0.17]
[1718570218087,9.47705692,149.11,149.06,5.8]
[1718570218383,9.47705692,149.11,149.06,5.63]
[1718570218580,12.4079,149.1,149.03,6.6314]
[1718570218792,24.8175,149.09,149.03,6.6314]
[1718570219082,7.4453,149.09,149.03,11.9214]
[1718570219809,14.8904,149.09,149.04,5.29]
[1718570219977,12.4097,149.08,149.04,5.29]
[1718570220177,2.4819,149.08,149.04,5.29]
[1718570220383,7.4456,149.08,149.03,5.29]
[1718570220705,2.4819,149.08,149.03,5.29]
[1718570221507,37.10448284,149.09,149.03,5.29]
[1718570222080,37.10448284,149.09,149.03,0.17]
[1718570222285,2.4818,149.08,149.03,0.34]
[1718570222504,2.4818,149.08,149.03,5.63]
[1718570222687,37.10448284,149.09,149.03,5.63]
[1718570222881,5.29,149.07,148.99,6.6137]
[1718570223193,6.99668284,149.09,148.99,6.6137]
[1718570223194,27.6317,149.05,148.99,6.6137]
[1718570223397,2.4825,149.04,148.99,11.9037]
[1718570224082,2.4825,149.04,148.99,5.29]
[1718570224487,2.4823,149.06,149.0,5.29]
[1718570224701,7.772,149.07,149.01,5.8]
[1718570224907,5.29,149.07,149.02,5.29]
[1718570225114,7.7721,149.07,149.02,5.29]
[1718570226395,23.2124,149.08,149.02,5.29]
[1718570226599,2.482,149.07,149.03,5.29]
[1718570226805,7.4461,149.07,149.03,5.29]
[1718570226990,2.4822,149.06,149.02,5.29]
[1718570227391,20.1824,149.07,149.01,5.8]
[1718570227590,20.1824,149.07,149.02,0.17]
[1718570228287,12.7362,149.07,149.02,0.17]
[1718570229609,20.1823,149.07,149.01,0.34]
[1718570229819,12.7362,149.07,149.02,5.29]
[1718570230004,20.1823,149.07,149.02,5.29]
[1718570230205,20.1823,149.07,149.01,5.29]
[1718570230392,2.4822,149.06,149.01,5.29]
[1718570230597,7.7722,149.06,149.01,5.29]
[1718570232307,5.29,149.06,149.01,5.29]
[1718570232499,14.43647356,149.07,149.01,5.29]
[1718570233628,21.88267356,149.07,149.01,5.29]
[1718570234219,2.4822,149.06,148.99,0.17]
[1718570234414,2.4822,149.06,148.99,0.68]
[1718570234620,7.4469,149.06,149.0,5.29]
[1718570236707,2.4824,149.05,149.0,5.29]
[1718570237318,24.8225,149.06,149.0,5.29]
[1718570237502,2.4823,149.05,149.0,5.29]
[1718570238124,7.4469,149.06,149.0,5.29]
[1718570238626,7.4469,149.06,149.01,5.29]
[1718570240028,14.8935,149.06,149.01,5.29]
[1718570240701,16.91877356,149.07,149.02,0.17]
[1718570240702,6.99027356,149.07,149.02,0.17]
[1718570240902,12.7348,149.1,149.05,5.29]
[1718570241434,27.16933842,149.1,149.05,5.29]
[1718570241725,2.4817,149.09,149.05,5.29]
[1718570242234,7.4452,149.09,149.05,5.29]
[1718570242402,7.4452,149.09,149.02,0.17]
[1718570242403,7.4452,149.09,149.04,5.29]
[1718570242727,14.8903,149.09,149.04,5.29]
[1718570242924,2.4818,149.08,149.04,5.29]
[1718570246702,7.4455,149.08,149.04,5.29]
[1718570247332,2.4818,149.08,149.04,5.29]
[1718570248030,14.43463842,149.1,149.05,5.46]
[1718570248237,14.43463842,149.1,149.05,5.63]
[1718570248441,6.98983842,149.1,149.06,5.46]
[1718570249011,6.98983842,149.1,149.07,0.34]
[1718570249314,6.98983842,149.1,149.08,5.29]
[1718570249622,6.98983842,149.1,149.07,0.34]
[1718570249623,6.98983842,149.1,149.07,5.29]
[1718570249827,9.47133842,149.1,149.07,5.29]
[1718570250408,6.98983842,149.1,149.07,5.29]
[1718570255546,6.98983842,149.1,149.06,5.29]
[1718570255752,6.98983842,149.1,149.05,12.0257]
[1718570255926,6.98983842,149.1,149.06,0.17]
[1718570269186,6.98983842,149.1,149.06,5.46]
[1718570275763,6.98983842,149.1,149.08,5.29]
[1718570276470,6.98983842,149.1,149.07,5.29]
[1718570284894,6.98983842,149.1,149.06,0.17]
[1718570285100,6.98983842,149.1,149.06,5.8]
[1718570285878,6.98983842,149.1,149.06,0.17]
[1718570286191,27.16963842,149.1,149.04,5.46]
[1718570286500,27.16963842,149.1,149.05,0.51]
[1718570286965,14.76143842,149.1,149.05,0.51]
[1718570287779,14.76143842,149.1,149.05,0.17]
[1718570287983,12.27983842,149.1,149.05,0.17]
[1718570288689,19.72443842,149.1,149.04,5.46]
[1718570288878,14.76133842,149.1,149.04,5.46]
[1718570289390,14.76133842,149.1,149.04,5.29]
[1718570289697,19.72443842,149.1,149.04,5.29]
[1718570292183,2.4817,149.09,149.03,0.51]
[1718570292379,2.4817,149.09,149.02,0.17]
[1718570292380,4.9642,149.07,149.02,5.29]
[1718570292593,7.7722,149.06,149.0,5.29]
[1718570292979,14.76142404,149.06,149.0,5.29]
[1718570293298,19.72582404,149.06,149.0,5.29]
[1718570293687,27.17242404,149.06,149.0,5.29]
[1718570294696,27.17242404,149.06,148.96,35.54292701]
[1718570294697,2.4824,149.05,148.99,0.17]
[1718570295001,7.7725,149.05,148.99,5.46]
[1718570295778,2.4826,149.04,148.99,5.29]
[1718570295988,7.7726,149.04,148.99,5.29]
[1718570296171,5.29,149.04,148.99,5.29]
[1718570296789,7.7725,149.04,148.99,5.29]
[1718570297775,12.7376,149.04,148.99,5.29]
[1718570298599,7.7725,149.04,148.99,5.29]
[1718570298803,5.29,149.04,148.99,5.29]
[1718570298989,7.7725,149.04,148.99,5.29]
[1718570301005,2.4825,149.04,148.99,5.29]
[1718570301403,5.29,149.05,148.97,0.17]
[1718570301591,24.8261,149.04,148.97,0.68]
[1718570302407,2.4827,149.03,148.97,0.68]
[1718570302710,24.8258,149.04,148.97,0.68]
[1718570303202,7.4479,149.04,148.97,0.68]
[1718570303409,14.43564806,149.04,148.97,0.68]
[1718570305189,6.98774806,149.04,148.97,0.68]
[1718570305513,22.6492,149.07,149.02,5.29]
[1718570305514,2.4822,149.06,149.02,5.29]
[1718570305689,9.46838986,149.06,149.02,5.29]
[1718570306585,14.43278986,149.06,149.02,5.29]
[1718570306786,21.87948986,149.06,149.01,5.29]
[1718570307012,2.4823,149.05,149.01,5.29]
[1718570307502,7.4471,149.05,149.01,5.29]
[1718570307814,2.4823,149.05,149.01,5.29]
[1718570308108,29.32628986,149.06,149.01,5.29]
[1718570308497,31.80858986,149.06,149.01,5.29]
[1718570309012,14.43308986,149.06,149.01,5.29]
[1718570309812,2.4823,149.05,149.01,5.29]
[1718570311210,7.4471,149.05,149.01,5.29]
[1718570312416,14.8942,149.05,149.01,5.29]
[1718570312709,7.4471,149.05,149.01,5.29]
[1718570314008,7.4471,149.05,148.97,9.79166656]
[1718570314208,2.4826,149.04,149.01,5.29]
[1718570315213,24.8241,149.05,149.01,5.29]
[1718570315517,2.4825,149.04,149.01,5.29]
[1718570316023,19.39728986,149.06,149.01,5.29]
[1718570316206,7.4471,149.05,149.01,5.29]
[1718570317117,14.8942,149.05,149.01,5.29]
[1718570317703,7.4471,149.05,149.01,5.29]
[1718570319412,6.98618986,149.06,149.01,5.29]
[1718570319598,33.8691,149.07,149.01,5.29]
[1718570319599,18.9762,149.07,149.03,5.29]
[1718570319806,16.4941,149.07,149.03,5.29]
[1718570320304,18.9761,149.07,149.03,5.29]
[1718570320723,23.9402,149.07,149.03,5.29]
[1718570321510,2.4822,149.06,149.03,5.29]
[1718570321711,2.4822,149.06,149.02,5.29]
[1718570321914,2.4824,149.05,149.02,5.29]
[1718570322512,24.8224,149.06,149.02,5.29]
[1718570322932,7.4468,149.06,149.02,5.29]
[1718570323109,2.4823,149.06,149.02,5.29]
[1718570324932,7.4467,149.06,149.02,5.29]
[1718570326914,2.4824,149.05,149.02,5.29]
[1718570328436,24.8223,149.06,149.02,5.29]
[1718570329230,7.4467,149.06,149.02,5.29]
[1718570330518,2.4824,149.05,149.02,5.29]
[1718570330838,24.8224,149.06,149.02,5.29]
[1718570332642,14.8925,149.07,149.02,5.29]
[1718570332814,14.8925,149.07,149.03,5.29]
[1718570333009,2.4822,149.06,149.03,5.29]
[1718570335646,24.8209,149.07,149.03,5.29]
[1718570336143,2.4822,149.06,149.03,5.29]
[1718570338621,24.821,149.07,149.03,5.29]
[1718570340423,2.4822,149.06,149.03,5.29]
[1718570340619,7.4467,149.06,149.03,5.29]
[1718570340815,2.4823,149.05,149.03,5.29]
[1718570341042,2.4824,149.05,149.02,5.29]
[1718570341245,2.4824,149.05,149.01,5.46]
[1718570341541,6.99352646,149.07,149.03,5.29]
[1718570341849,9.47552646,149.07,149.03,5.29]
[1718570342445,14.43962646,149.07,149.03,5.29]
[1718570343440,21.88572646,149.07,149.03,5.29]
[1718570343945,6.99352646,149.07,149.03,5.29]
[1718570344248,7.4456,149.08,149.04,6.63168253]
[1718570344736,2.482,149.07,149.04,5.29]
[1718570346927,14.8913,149.08,149.04,5.29]
[1718570347447,22.3368,149.08,149.04,5.29]
[1718570347651,2.482,149.07,149.04,5.29]
[1718570348528,2.482,149.07,149.03,0.17]
[1718570348856,7.4461,149.07,149.03,0.68]
[1718570349031,7.4461,149.07,149.03,5.97]
[1718570349950,24.819,149.08,149.03,5.97]
[1718570350564,2.482,149.07,149.03,5.97]
[1718570351037,24.819,149.08,149.03,5.97]
[1718570351959,2.482,149.07,149.03,5.97]
[1718570352969,24.819,149.08,149.03,5.97]
[1718570353967,7.4459,149.08,149.03,5.97]
[1718570355661,2.4822,149.06,149.02,5.29]
[1718570356558,22.3406,149.06,149.01,0.17]
[1718570356871,12.7369,149.06,149.01,5.46]
[1718570357365,7.7723,149.06,149.01,5.46]
[1718570357569,20.1834,149.06,149.01,5.46]
[1718570357744,2.4823,149.05,149.01,5.46]
[1718570358361,20.1834,149.06,149.01,5.46]
[1718570358745,2.4823,149.05,149.01,0.17]
[1718570358967,27.6299,149.06,149.0,16.3743]
[1718570359171,7.4472,149.05,149.01,5.29]
[1718570359373,7.4472,149.05,149.0,21.6643]
[1718570360183,2.4824,149.05,149.0,21.6643]
[1718570360644,7.4472,149.05,149.0,21.6643]
[1718570360843,2.4824,149.05,149.0,21.6643]
[1718570365556,2.4821,149.07,149.02,5.29]
[1718570367581,34.61199852,149.08,149.02,5.29]
[1718570367757,2.482,149.07,149.02,5.29]
[1718570368363,7.4461,149.07,149.02,5.29]
[1718570368581,14.8922,149.07,149.02,5.29]
[1718570369180,2.4822,149.06,149.02,5.29]
[1718570369786,7.4466,149.06,149.02,5.29]
[1718570370673,7.4466,149.06,149.01,5.63]
[1718570371790,2.4822,149.06,149.01,5.63]
[1718570371966,24.8207,149.07,149.01,5.63]
[1718570372168,30.1107,149.07,149.01,5.63]
[1718570372367,2.4822,149.06,149.01,5.63]
[1718570372685,30.1107,149.07,149.01,5.63]
[1718570372873,24.8207,149.07,149.02,5.29]
[1718570373076,2.4822,149.06,149.02,5.29]
[1718570376175,7.4466,149.06,149.02,5.29]
[1718570391686,14.8933,149.06,149.02,5.29]
[1718570392902,2.4824,149.05,149.01,0.34]
[1718570393105,2.4824,149.05,149.02,5.29]
[1718570393833,24.8223,149.06,149.02,5.29]
[1718570394197,2.4823,149.05,149.02,5.29]
[1718570394403,24.8223,149.06,149.02,5.29]
[1718570396128,14.8934,149.06,149.02,5.29]
[1718570396303,7.4467,149.06,149.02,5.29]
[1718570396504,2.4823,149.06,149.02,5.29]
[1718570399430,7.4467,149.06,149.02,5.29]
[1718570400235,2.4823,149.06,149.02,5.29]
[1718570400907,7.4467,149.06,149.02,5.29]
[1718570402323,2.4823,149.06,149.02,5.29]
[1718570404033,22.3393,149.07,149.02,5.29]
[1718570404224,2.4822,149.06,149.02,5.29]
[1718570404923,2.4822,149.06,149.01,5.63]
[1718570406739,7.4466,149.06,149.01,5.63]
[1718570406939,2.4823,149.05,149.01,0.34]
[1718570407123,24.8222,149.06,149.01,0.34]
[1718570407443,7.4467,149.06,149.01,0.34]
[1718570409839,2.4823,149.06,149.01,0.34]
[1718570411232,6.98439852,149.08,149.01,0.34]
[1718570411445,24.8226,149.06,149.01,0.34]
[1718570411611,7.4468,149.06,149.01,5.63]
[1718570412035,2.4823,149.06,149.01,5.63]
[1718570412233,4.9649,149.05,149.0,16.3743]
[1718570412428,20.1845,149.05,149.0,16.3743]
[1718570412625,14.8945,149.05,149.0,16.3743]
[1718570413138,14.8945,149.05,149.0,21.6643]
[1718570413139,7.4474,149.05,149.0,21.6643]
[1718570416145,5.29,149.04,148.98,6.1835]
[1718570416443,2.4828,149.02,148.98,5.29]
[1718570416629,30.1174,149.03,148.98,5.29]
[1718570417043,30.1174,149.03,148.97,5.29]
[1718570417614,5.29,149.03,148.98,5.29]
[1718570417843,12.7379,149.04,148.98,5.29]
[1718570418050,7.4479,149.04,148.99,5.29]
[1718570418346,2.4827,149.03,148.97,0.17]
[1718570418647,12.29486348,149.05,148.97,0.68]
[1718570418827,2.4827,149.03,148.97,0.68]
[1718570419155,7.4481,149.03,148.98,5.29]
[1718570419932,14.8962,149.03,148.98,5.29]
[1718570420134,14.8962,149.03,148.97,0.68]
[1718570420449,12.4145,149.02,148.97,0.17]
[1718570420649,24.829,149.02,148.97,5.29]
[1718570420854,2.483,149.01,148.97,5.29]
[1718570421147,7.4488,149.02,148.97,5.29]
[1718570421518,2.483,149.02,148.97,5.29]
[1718570422553,7.4488,149.02,148.97,5.29]
[1718570422935,2.483,149.02,148.97,5.29]
[1718570424456,7.4487,149.02,148.97,5.29]
[1718570425042,2.483,149.02,148.97,5.29]
[1718570427564,14.8974,149.02,148.97,5.29]
[1718570427866,2.483,149.01,148.97,5.29]
[1718570428447,14.8974,149.02,148.97,5.29]
[1718570428642,12.4144,149.02,148.97,5.29]
[1718570428852,24.8292,149.02,148.97,5.29]
[1718570429249,7.4488,149.02,148.97,5.29]
[1718570429667,12.7388,149.02,148.96,21.5491]
[1718570430758,7.773,149.02,148.96,21.5491]
[1718570432460,5.29,149.02,148.96,21.5491]
[1718570432865,5.29,149.02,148.91,15.2431]
[1718570432866,22.351,148.99,148.91,15.2431]
[1718570433050,5.29,148.98,148.91,15.2431]
[1718570433256,7.7735,148.98,148.92,5.29]
[1718570433450,5.29,148.98,148.92,5.29]
[1718570434770,12.7403,148.99,148.93,5.29]
[1718570434971,20.1904,148.99,148.93,5.29]
[1718570435180,7.4507,148.98,148.93,5.29]
[1718570435679,2.4836,148.98,148.93,5.29]
[1718570436175,7.4507,148.98,148.93,5.29]
[1718570436364,22.3519,148.98,148.92,5.29]
[1718570436566,27.6419,148.98,148.92,5.29]
[1718570436752,12.4186,148.97,148.92,5.29]
[1718570436948,20.1924,148.97,148.92,5.29]
[1718570437373,27.19623633,148.97,148.92,5.29]
[1718570438092,27.19623633,148.97,148.91,20.5331]
[1718570438772,2.4839,148.96,148.91,20.5331]
[1718570438979,37.13133633,148.97,148.91,20.5331]
[1718570439178,29.68023633,148.97,148.91,20.5331]
[1718570439378,37.13143633,148.97,148.91,20.5331]
[1718570439749,7.4517,148.96,148.92,5.29]
[1718570439957,7.4517,148.96,148.91,5.29]
[1718570440151,12.7417,148.96,148.9,11.4596]
[1718570440380,12.7417,148.96,148.91,5.29]
[1718570442166,12.7417,148.96,148.89,5.29]
[1718570442167,12.7421,148.95,148.89,5.29]
[1718570442490,7.774,148.95,148.89,5.29]
[1718570442980,20.1942,148.95,148.87,15.2431]
[1718570443185,12.7421,148.95,148.89,5.29]
[1718570443393,12.7429,148.94,148.88,5.29]
[1718570443554,2.4844,148.93,148.88,5.29]
[1718570443761,12.7429,148.94,148.88,5.29]
[1718570444176,7.7743,148.94,148.88,5.29]
[1718570446684,7.7739,148.96,148.91,5.29]
[1718570446981,20.0,148.96,148.91,5.29]
[1718570447372,20.0,148.96,148.92,5.29]
[1718570447573,22.4839,148.96,148.92,5.29]
[1718570448156,27.4517,148.96,148.92,5.29]
[1718570448979,32.4195,148.96,148.92,5.29]
[1718570449374,42.355,148.96,148.92,5.29]
[1718570449576,2.484,148.95,148.92,5.29]
[1718570449965,7.4521,148.95,148.92,5.29]
[1718570450970,9.48753633,148.97,148.93,5.29]
[1718570451172,7.4511,148.97,148.93,5.29]
[1718570451479,22.3534,148.97,148.93,5.29]
[1718570451870,7.4516,148.96,148.93,5.29]
[1718570452077,14.9032,148.96,148.93,5.29]
[1718570454195,2.484,148.95,148.9,0.17]
[1718570454368,2.484,148.95,148.9,0.68]
[1718570454575,7.4517,148.96,148.9,0.68]
[1718570456891,2.484,148.96,148.9,0.68]
[1718570457486,7.4518,148.96,148.9,0.68]
[1718570459104,14.9034,148.96,148.9,0.68]
[1718570459800,7.4518,148.96,148.9,0.68]
[1718570461102,2.484,148.96,148.9,0.68]
[1718570461301,2.4836,148.98,148.9,0.68]
[1718570461474,7.4506,148.98,148.94,5.29]
[1718570461674,2.4835,148.98,148.94,5.29]
[1718570461895,2.4835,148.98,148.95,5.29]
[1718570462399,14.9012,148.98,148.95,5.29]
[1718570464497,14.9012,148.98,148.9,0.68]
[1718570464498,31.83488178,149.0,148.96,5.29]
[1718570464686,7.4498,149.0,148.97,5.29]
[1718570465077,14.8994,149.0,148.97,5.29]
[1718570465883,14.8995,149.0,148.97,5.29]
[1718570466773,2.4833,149.0,148.97,5.29]
[1718570466982,2.4832,149.0,148.97,5.29]
[1718570467210,7.4496,149.0,148.97,5.29]
[1718570467510,14.8992,149.0,148.97,5.29]
[1718570468127,2.4833,148.99,148.97,5.29]
[1718570468304,14.9002,148.99,148.92,0.17]
[1718570468495,14.9002,148.99,148.95,5.29]
[1718570468697,7.4501,148.99,148.95,5.29]
[1718570469484,2.4833,148.99,148.95,5.29]
[1718570469916,24.8327,149.0,148.95,5.29]
[1718570470211,2.4833,148.99,148.95,5.29]
[1718570470417,24.8327,149.0,148.95,5.29]
[1718570471106,2.4833,148.99,148.92,0.68]
[1718570471313,2.4833,148.99,148.95,5.29]
[1718570471519,24.8325,149.0,148.95,5.29]
[1718570471719,14.8995,149.0,148.95,5.29]
[1718570472112,7.4499,149.0,148.95,5.29]
[1718570472419,24.8325,149.0,148.95,5.29]
[1718570473915,7.4499,149.0,148.95,5.29]
[1718570476019,2.4833,149.0,148.95,5.29]
[1718570476525,2.4832,149.0,148.95,5.29]
[1718570477225,7.4497,149.0,148.95,5.29]
[1718570477811,12.7397,149.0,148.94,5.29]
[1718570478221,7.7732,149.0,148.94,5.29]
[1718570480015,22.5379,149.01,148.95,5.29]
[1718570480205,22.8616,149.01,148.95,5.29]
[1718570480833,27.8277,149.01,148.95,5.29]
[1718570481128,2.4832,149.0,148.95,5.29]